fUST/lending_fUST_20240425
["ID","MTS","AMOUNT","RATE_DAILY","PERIOD"]
[323467403,1714028165453,-150.12765247,0.00027757,30]
[323467404,1714028165477,-216.16622505,0.00027757,120]
[323467405,1714028165501,-199.42950075,0.00027757,120]
[323467406,1714028165525,-153.17711113,0.00027757,120]
[323467407,1714028165549,-593.9443703,0.00027757,120]
[323467408,1714028165573,-334.15547955,0.00027757,120]
[323467409,1714028165598,-1158.03938266,0.00027757,30]
[323467410,1714028165622,-968.96751337,0.00027757,120]
[323467411,1714028165829,-386.12463414,0.00027757,120]
[323467412,1714028165856,-162.16760656,0.00027757,120]
[323467413,1714028165881,-152.90027496,0.00027757,30]
[323467414,1714028165907,-510.7633617,0.00027757,30]
[323467415,1714028165932,-202.34922247,0.00027757,30]
[323467416,1714028165956,-1008.73274703,0.00027757,120]
[323467417,1714028165980,-1000.0,0.00027757,60]
[323467418,1714028166004,-684.0,0.00027757,30]
[323467419,1714028166027,-1000.0,0.00027757,120]
[323467420,1714028166051,-502.2,0.00027757,30]
[323467421,1714028166075,-502.199999,0.00027757,30]
[323467422,1714028166100,-502.199999,0.00027757,60]
[323467423,1714028166124,-502.199999,0.00027757,90]
[323467424,1714028166146,-502.199999,0.00027757,120]
[323467425,1714028166170,-1366.73463561,0.00027757,120]
[323467426,1714028166196,-22518.11066404,0.00027757,60]
[323467427,1714028166219,-10000.0,0.00027757,60]
[323467428,1714028166244,-727.647467,0.00027757,30]
[323467429,1714028166268,-338644.26903744,0.00027757,120]
[323467430,1714028172170,-54864.64305811,0.00027757,120]
[323467431,1714028172194,-3693.30234422,0.00027757,30]
[323467432,1714028172217,-518.5461734,0.00027757,30]
[323467433,1714028172240,-226.0421748,0.00027757,120]
[323467434,1714028172265,-500.0,0.00027757,30]
[323467435,1714028172289,-500.0,0.00027757,30]
[323467436,1714028172314,-500.0,0.00027757,30]
[323467437,1714028172338,-500.0,0.00027757,30]
[323467438,1714028172362,-500.0,0.00027757,30]
[323467439,1714028172387,-500.0,0.00027757,30]
[323467440,1714028172413,-500.0,0.00027757,30]
[323467441,1714028172439,-500.0,0.00027757,30]
[323467442,1714028172463,-500.0,0.00027757,30]
[323467443,1714028172489,-500.0,0.00027757,30]
[323467444,1714028172515,-500.0,0.00027757,30]
[323467445,1714028172541,-500.0,0.00027757,30]
[323467446,1714028172567,-500.0,0.00027757,30]
[323467447,1714028172592,-500.0,0.00027757,30]
[323467448,1714028172617,-500.0,0.00027757,30]
[323467449,1714028172641,-500.0,0.00027757,30]
[323467450,1714028172666,-499.98843172,0.00027757,30]
[323467451,1714028172691,-951.53182687,0.00027757,120]
[323467452,1714028182037,-843.0,0.0002408,35]
[323467453,1714028182061,-843.0,0.0002409,35]
[323467454,1714028182085,-843.0,0.000241,35]
[323467455,1714028182109,-5735.1378,0.00024117,30]
[323467456,1714028182137,-152.58,0.00024137,35]
[323467457,1714028182160,-150.5,0.00024305,35]
[323467458,1714028182184,-150.5,0.00024315,35]
[323467459,1714028182213,-436.87727595,0.00025,30]
[323467460,1714028182238,-77466.14057016,0.00025,30]
[323467461,1714028182265,-1206.67266007,0.00025991,30]
[323467462,1714028182289,-5000.0,0.00026,30]
[323467463,1714028182313,-198.6888,0.00026117,30]
[323467464,1714028182337,-1684.14170398,0.00026192,60]
[323467465,1714028182366,-200.0,0.00027192,120]
[323467466,1714028182390,-585.49,0.00027397,30]
[323467467,1714028182413,-585.49,0.00027397,30]
[323467468,1714028182437,-585.49,0.00027397,30]
[323467469,1714028182460,-585.49,0.00027397,30]
[323467470,1714028182483,-585.49,0.00027397,30]
[323467471,1714028182506,-585.49,0.00027397,30]
[323467472,1714028182529,-585.49,0.00027397,30]
[323467473,1714028182552,-585.49,0.00027397,30]
[323467474,1714028182574,-585.49,0.00027397,30]
[323467475,1714028182598,-585.49,0.00027397,30]
[323467476,1714028182621,-585.49,0.00027397,30]
[323467477,1714028182645,-585.49,0.00027397,30]
[323467478,1714028182668,-585.49,0.00027397,30]
[323467479,1714028182691,-585.49,0.00027397,30]
[323467480,1714028182714,-585.49,0.00027397,30]
[323467481,1714028182737,-585.49,0.00027397,30]
[323467482,1714028182763,-585.49,0.00027397,30]
[323467483,1714028182788,-585.49,0.00027397,30]
[323467484,1714028182811,-585.49,0.00027397,30]
[323467485,1714028182834,-585.49,0.00027397,30]
[323467486,1714028182857,-585.49,0.00027397,30]
[323467487,1714028182881,-585.49,0.00027397,30]
[323467488,1714028182906,-585.49,0.00027397,30]
[323467489,1714028182929,-585.65526185,0.00027397,30]
[323467490,1714028182960,-11290.10245996,0.0002778,120]
[323467491,1714028182984,-843.0,0.0002787,35]
[323467492,1714028183008,-843.0,0.0002788,35]
[323467493,1714028183032,-843.0,0.0002789,35]
[323467494,1714028183057,-200.0,0.00028297,120]
[323467495,1714028183082,-200.0,0.00028325,120]
[323467496,1714028183110,-200.0,0.00029429,120]
[323467497,1714028183136,-200.0,0.00029718,120]
[323467498,1714028183164,-154.90705577,0.0003,30]
[323467499,1714028183188,-447.0,0.0003,120]
[323467500,1714028183212,-200.15312374,0.0003,30]
[323467501,1714028183236,-809.37,0.0003,120]
[323467502,1714028183264,-167.367272,0.00030137,34]
[323467503,1714028183288,-167.367272,0.00030137,44]
[323467504,1714028183311,-167.367272,0.00030137,55]
[323467505,1714028183334,-167.367272,0.00030137,66]
[323467506,1714028183357,-167.367272,0.00030137,77]
[323467507,1714028183381,-167.367272,0.00030137,87]
[323467508,1714028183406,-167.367272,0.00030137,98]
[323467509,1714028183429,-167.367272,0.00030137,109]
[323467510,1714028183453,-167.367272,0.00030137,119]
[323467511,1714028183479,-200.0,0.00030953,120]
[323467512,1714028183503,-200.0,0.00031135,120]
[323467513,1714028183529,-2413.34532015,0.00031482,120]
[323467514,1714028183557,-500.0,0.000329,60]
[323467515,1714028183581,-200.0,0.00032962,120]
[323467516,1714028183605,-262.5,0.00034,60]
[323467517,1714028183629,-200.0,0.00034168,120]
[323467518,1714028183654,-200.0,0.00034659,120]
[323467519,1714028183676,-160.0,0.00034847,30]
[323467520,1714028183700,-200.0,0.00034877,120]
[323467521,1714028183727,-362.96057121,0.00035,30]
[323467522,1714028183757,-1083.79342745,0.00035,30]
[323467523,1714028183780,-186.29687557,0.00035,30]
[323467524,1714028183806,-2711.54770167,0.00035,120]
[323467525,1714028183994,-160.0,0.00035035,31]
[323467526,1714028184019,-160.0,0.00035224,32]
[323467527,1714028184043,-160.0,0.00035412,33]
[323467528,1714028184066,-160.0,0.000356,34]
[323467529,1714028184090,-2134.084262,0.00035616,120]
[323467530,1714028184114,-2516.65402355,0.00036,30]
[323467531,1714028184139,-200.0,0.00036269,120]
[323467532,1714028184164,-200.0,0.00036288,120]
[323467533,1714028184187,-1102.05442092,0.0003707,31]
[323467534,1714028184212,-200.0,0.00037259,120]
[323467535,1714028184235,-3000.0,0.000375,32]
[323467536,1714028184259,-3000.0,0.0003751,32]
[323467537,1714028184284,-3000.0,0.0003752,32]
[323467538,1714028184307,-3000.0,0.0003753,32]
[323467539,1714028184331,-3000.0,0.0003754,32]
[323467540,1714028184356,-3000.0,0.0003755,32]
[323467541,1714028184380,-3000.0,0.0003756,32]
[323467542,1714028184404,-3000.0,0.0003757,32]
[323467543,1714028184428,-3000.0,0.0003758,32]
[323467544,1714028184454,-3000.0,0.0003759,32]
[323467545,1714028184478,-3000.0,0.000376,32]
[323467546,1714028184503,-3000.0,0.0003761,32]
[323467547,1714028184529,-3000.0,0.0003762,32]
[323467548,1714028184558,-3000.0,0.0003763,32]
[323467549,1714028184583,-3000.0,0.0003764,32]
[323467550,1714028184609,-3000.0,0.0003765,32]
[323467551,1714028184634,-3000.0,0.0003766,32]
[323467552,1714028184660,-3000.0,0.0003767,32]
[323467553,1714028184685,-3000.0,0.0003768,32]
[323467554,1714028184711,-3000.0,0.0003769,32]
[323467555,1714028184735,-3000.0,0.000377,32]
[323467556,1714028184764,-3000.0,0.0003771,32]
[323467557,1714028184788,-3000.0,0.0003772,32]
[323467558,1714028184812,-3000.0,0.0003773,32]
[323467559,1714028184840,-3000.0,0.0003774,32]
[323467560,1714028184865,-3000.0,0.0003775,32]
[323467561,1714028184889,-3000.0,0.0003776,33]
[323467562,1714028184914,-3000.0,0.0003777,33]
[323467563,1714028184939,-3000.0,0.0003778,33]
[323467564,1714028184965,-3000.0,0.0003779,33]
[323467565,1714028184990,-3000.0,0.000378,33]
[323467566,1714028185014,-3000.0,0.0003781,33]
[323467567,1714028185038,-3000.0,0.0003782,33]
[323467568,1714028185062,-3000.0,0.0003783,33]
[323467569,1714028185087,-3000.0,0.0003784,33]
[323467570,1714028185111,-3000.0,0.0003785,33]
[323467571,1714028185135,-3000.0,0.0003786,33]
[323467572,1714028185159,-3000.0,0.0003787,33]
[323467573,1714028185182,-3000.0,0.0003788,33]
[323467574,1714028185206,-3000.0,0.0003789,33]
[323467575,1714028185230,-3000.0,0.000379,33]
[323467576,1714028185254,-3000.0,0.0003791,33]
[323467577,1714028185278,-3000.0,0.0003792,33]
[323467578,1714028185301,-5766.104987,0.0003793,33]
[323467579,1714028185324,-157.10652663,0.00038,120]
[323467580,1714028185347,-1673.43,0.00038,30]
[323467581,1714028185372,-2000.0,0.00038,120]
[323467582,1714028185396,-200.0,0.00038366,120]
[323467583,1714028185420,-843.0,0.0003898,35]
[323467584,1714028185443,-843.0,0.0003899,35]
[323467585,1714028185467,-27446.00000099,0.00039,30]
[323467586,1714028185490,-81617.59013263,0.00039,120]
[323467587,1714028185517,-2278.3613637,0.00039,120]
[323467588,1714028185541,-3428.0,0.00039,120]
[323467589,1714028185565,-742.341404,0.00039,120]
[323467590,1714028185589,-999.0,0.00039397,30]
[323467591,1714028185614,-433.82682305,0.00039397,30]
[323468017,1714029032687,-252.66845689,0.00014325,2]
[323468020,1714029032700,-268.33154311,0.00014325,2]
[323468022,1714029032710,-115.46828609,0.00014326,2]
[323468028,1714029032773,-562.69444389,0.00014326,2]
[323468030,1714029032782,-526.48799582,0.00014327,2]
[323468032,1714029032792,-1878.59086756,0.00014327,2]
[323468034,1714029032801,-806.30091909,0.00014327,2]
[323468056,1714029038757,-873.20296497,0.00014327,2]
[323468057,1714029038766,-634.36479908,0.00014328,2]
[323468095,1714029047717,-456.45687012,0.00014328,2]
[323468096,1714029047727,-300.0,0.0001433,2]
[323468097,1714029047736,-300.0,0.0001433,2]
[323468098,1714029047745,-619.84595266,0.00014364,2]
[323468099,1714029047755,-1947.810485,0.0001438,2]
[323468100,1714029047764,-593.59974677,0.00014792,2]
[323468101,1714029047772,-176.5504439,0.0001485,2]
[323468102,1714029047782,-150.0,0.00014885,2]
[323468103,1714029047791,-958.96418059,0.000149,2]
[323468104,1714029047800,-2776.93021993,0.00015,2]
[323468105,1714029047809,-2099.98323324,0.00015,2]
[323468106,1714029047818,-938.81449525,0.00015182,2]
[323468107,1714029047827,-312.71080906,0.00015183,2]
[323468108,1714029047836,-958.96418059,0.0001519,2]
[323468109,1714029047846,-958.96418059,0.0001548,2]
[323468110,1714029047855,-154.84515485,0.0001561,2]
[323468111,1714029047864,-927.73627561,0.00015614,2]
[323468112,1714029047873,-420.0,0.00015694,2]
[323468113,1714029047882,-420.0,0.00015763,2]
[323468114,1714029047892,-958.96418059,0.0001578,2]
[323468115,1714029047902,-620.0,0.00015845,2]
[323468116,1714029047911,-212.46303468,0.00015994,2]
[323468117,1714029047920,-283.38557575,0.00015994,2]
[323468118,1714029047929,-7927.7751585,0.00016,2]
[323468119,1714029047939,-958.96418059,0.0001607,2]
[323468120,1714029047948,-150.0,0.0001614,2]
[323468121,1714029047957,-1859.308583,0.00016311,2]
[323468122,1714029047966,-1673.426035,0.00016311,2]
[323468123,1714029047975,-2000.0,0.00016336,2]
[323468124,1714029047985,-5851.69447512,0.00016338,2]
[323468125,1714029047995,-958.96418059,0.0001636,2]
[323468126,1714029048004,-153.384719,0.000164,2]
[323468127,1714029048017,-155.45224668,0.00016435,2]
[323468128,1714029048026,-1087.28742838,0.00016435,2]
[323468129,1714029048036,-640.17037402,0.00016435,2]
[323468130,1714029048046,-564.51895848,0.00016435,2]
[323468131,1714029048055,-185.4848423,0.00016435,2]
[323468132,1714029048064,-2442.16474237,0.00016435,2]
[323468133,1714029048073,-774.24016354,0.00016435,2]
[323468134,1714029048083,-193.994371,0.00016435,2]
[323468135,1714029048092,-1679.86906362,0.00016435,2]
[323468136,1714029048101,-1484.39666007,0.00016435,2]
[323468137,1714029048112,-1482.12221106,0.00016435,2]
[323468138,1714029048120,-1201.59075791,0.00016435,2]
[323468139,1714029048130,-2433.49739076,0.00016435,2]
[323468140,1714029048140,-2622.72435072,0.00016435,2]
[323468141,1714029048151,-2081.58251584,0.00016435,2]
[323468142,1714029048160,-1164.94367171,0.00016435,2]
[323468143,1714029048170,-521.0,0.00016435,2]
[323468144,1714029048180,-1878.59086756,0.00016435,2]
[323468145,1714029048190,-362.01061268,0.00016436,2]
[323468146,1714029048199,-154.95666867,0.00016436,2]
[323468147,1714029048208,-309.65937468,0.00016436,2]
[323468148,1714029048217,-155.02233795,0.00016436,2]
[323468149,1714029048227,-300.94996397,0.00016436,2]
[323468150,1714029048237,-705.40305203,0.00016436,2]
[323468151,1714029048247,-204.08167779,0.00016436,2]
[323468152,1714029048256,-154.93832663,0.00016436,2]
[323468153,1714029048266,-206.40732463,0.00016436,2]
[323468154,1714029048275,-155.1122585,0.00016436,2]
[323468155,1714029048285,-154.84515485,0.00016436,2]
[323468156,1714029048294,-808.15085291,0.00016436,2]
[323468157,1714029048478,-539.63707301,0.00016436,2]
[323468158,1714029048488,-1311.22668928,0.00016436,2]
[323468159,1714029048498,-468.2653797,0.00016436,2]
[323468160,1714029048506,-155.02999449,0.00016436,2]
[323468161,1714029048516,-410080.89277712,0.00016437,2]
[323468162,1714029048525,-500.0,0.00016438,2]
[323468163,1714029048534,-500.0,0.00016438,2]
[323468164,1714029048542,-341.98913491,0.00016438,2]
[323468165,1714029048551,-500.0,0.00016438,2]
[323468166,1714029048560,-500.0,0.00016438,2]
[323468167,1714029048570,-500.0,0.00016438,2]
[323468168,1714029048578,-500.0,0.00016438,2]
[323468169,1714029048588,-500.0,0.00016438,2]
[323468170,1714029048597,-500.0,0.00016438,2]
[323468171,1714029048606,-569.22,0.00016438,2]
[323468172,1714029048616,-500.0,0.00016438,2]
[323468173,1714029048624,-500.0,0.00016438,2]
[323468174,1714029048633,-501.0928094,0.00016438,2]
[323468175,1714029048644,-281.21406813,0.00016438,2]
[323468176,1714029048655,-500.0,0.00016438,2]
[323468177,1714029048664,-818.02,0.00016438,2]
[323468178,1714029048673,-500.0,0.00016438,2]
[323468179,1714029048683,-500.0,0.00016438,2]
[323468180,1714029048692,-619.95,0.00016438,2]
[323468181,1714029048701,-500.0,0.00016438,2]
[323468182,1714029048711,-568.07,0.00016438,2]
[323468183,1714029048720,-165.652956,0.00016438,2]
[323468184,1714029048729,-500.0,0.00016438,2]
[323468185,1714029048738,-500.0,0.00016438,2]
[323468186,1714029048747,-500.0,0.00016438,2]
[323468187,1714029048757,-793.19,0.00016438,2]
[323468188,1714029048766,-500.0,0.00016438,2]
[323468189,1714029048775,-616.43,0.00016438,2]
[323468190,1714029048785,-500.0,0.00016438,2]
[323468191,1714029048794,-357.67034614,0.00016438,2]
[323468192,1714029048803,-500.0,0.00016438,2]
[323468193,1714029048812,-500.0,0.00016438,2]
[323468194,1714029048822,-583.35,0.00016438,2]
[323468195,1714029048831,-500.0,0.00016438,2]
[323468196,1714029048841,-500.0,0.00016438,2]
[323468197,1714029048850,-500.0,0.00016438,2]
[323468198,1714029048860,-424.21803531,0.00016438,2]
[323468199,1714029048869,-500.0,0.00016438,2]
[323468200,1714029048882,-500.0,0.00016438,2]
[323468201,1714029048892,-500.0,0.00016438,2]
[323468202,1714029048901,-500.0,0.00016438,2]
[323468203,1714029048910,-500.0,0.00016438,2]
[323468204,1714029048919,-500.0,0.00016438,2]
[323468205,1714029048928,-500.0,0.00016438,2]
[323468206,1714029048937,-388.02027671,0.00016438,2]
[323468207,1714029048947,-501.38600674,0.00016438,2]
[323468208,1714029048956,-500.0,0.00016438,2]
[323468209,1714029048965,-500.0,0.00016438,2]
[323468210,1714029048974,-504.30450265,0.00016438,2]
[323468211,1714029048984,-500.0,0.00016438,2]
[323468212,1714029048993,-500.0,0.00016438,2]
[323468213,1714029049007,-500.0,0.00016438,2]
[323468214,1714029049017,-500.0,0.00016438,2]
[323468215,1714029049026,-500.0,0.00016438,2]
[323468216,1714029049035,-500.0,0.00016438,2]
[323468217,1714029049045,-503.59515724,0.00016438,2]
[323468218,1714029049054,-500.21936777,0.00016438,2]
[323468219,1714029049064,-500.0,0.00016438,2]
[323468220,1714029049073,-500.0,0.00016438,2]
[323468221,1714029049083,-500.0,0.00016438,2]
[323468222,1714029049093,-505.2644683,0.00016438,2]
[323468223,1714029049102,-500.0,0.00016438,2]
[323468224,1714029049111,-500.0,0.00016438,2]
[323468225,1714029049120,-500.0,0.00016438,2]
[323468226,1714029049129,-521.22655881,0.00016438,2]
[323468227,1714029049138,-150.16702039,0.00016438,2]
[323468228,1714029049147,-509.42891898,0.00016438,2]
[323468229,1714029049156,-500.0,0.00016438,2]
[323468230,1714029049165,-507.49136665,0.00016438,2]
[323468231,1714029049174,-500.0,0.00016438,2]
[323468232,1714029049183,-500.0,0.00016438,2]
[323468233,1714029049192,-500.0,0.00016438,2]
[323468234,1714029049201,-201.41818819,0.00016438,2]
[323468235,1714029049210,-500.0,0.00016438,2]
[323468236,1714029049219,-500.0,0.00016438,2]
[323468237,1714029049229,-669.58,0.00016438,2]
[323468238,1714029049238,-500.0,0.00016438,2]
[323468239,1714029049247,-500.0,0.00016438,2]
[323468240,1714029049256,-500.0,0.00016438,2]
[323468241,1714029049265,-500.0,0.00016438,2]
[323468242,1714029049274,-500.0,0.00016438,2]
[323468243,1714029049283,-500.0,0.00016438,2]
[323468244,1714029049292,-500.0,0.00016438,2]
[323468245,1714029049301,-528.20526821,0.00016438,2]
[323468246,1714029049310,-500.0,0.00016438,2]
[323468247,1714029049320,-500.0,0.00016438,2]
[323468248,1714029049329,-500.0,0.00016438,2]
[323468249,1714029049338,-653.55,0.00016438,2]
[323468250,1714029049348,-653.55,0.00016438,2]
[323468251,1714029049358,-503.45395007,0.00016438,2]
[323468252,1714029049367,-653.55,0.00016438,2]
[323468253,1714029049376,-653.55,0.00016438,2]
[323468254,1714029049385,-653.55,0.00016438,2]
[323468255,1714029049394,-653.55,0.00016438,2]
[323468256,1714029049403,-653.55,0.00016438,2]
[323468257,1714029049412,-653.55,0.00016438,2]
[323468258,1714029049422,-653.55,0.00016438,2]
[323468259,1714029049431,-653.55,0.00016438,2]
[323468260,1714029049440,-502.13405602,0.00016438,2]
[323468261,1714029049449,-653.55,0.00016438,2]
[323468262,1714029049458,-500.0,0.00016438,2]
[323468263,1714029049467,-501.79405038,0.00016438,2]
[323468264,1714029049477,-653.55,0.00016438,2]
[323468265,1714029049486,-653.55,0.00016438,2]
[323468266,1714029049495,-653.55,0.00016438,2]
[323468267,1714029049504,-653.55,0.00016438,2]
[323468268,1714029049513,-653.55,0.00016438,2]
[323468269,1714029049523,-500.0,0.00016438,2]
[323468270,1714029049533,-653.55,0.00016438,2]
[323468271,1714029049542,-500.0,0.00016438,2]
[323468272,1714029049552,-653.55,0.00016438,2]
[323468273,1714029049562,-653.55,0.00016438,2]
[323468274,1714029049571,-510.76098978,0.00016438,2]
[323468275,1714029049581,-653.55,0.00016438,2]
[323468276,1714029049591,-653.55,0.00016438,2]
[323468277,1714029049601,-653.55,0.00016438,2]
[323468278,1714029049611,-512.31172289,0.00016438,2]
[323468279,1714029049620,-653.55,0.00016438,2]
[323468280,1714029049630,-653.73,0.00016438,2]
[323468281,1714029049639,-500.0,0.00016438,2]
[323468282,1714029049648,-500.0,0.00016438,2]
[323468283,1714029049657,-500.0,0.00016438,2]
[323468284,1714029049667,-709.97,0.00016438,2]
[323468285,1714029049676,-500.0,0.00016438,2]
[323468286,1714029049685,-500.0,0.00016438,2]
[323468287,1714029049694,-500.0,0.00016438,2]
[323468288,1714029049703,-501.94626679,0.00016438,2]
[323468289,1714029049712,-500.0,0.00016438,2]
[323468290,1714029049721,-500.65393822,0.00016438,2]
[323468291,1714029049730,-529.22640966,0.00016438,2]
[323468292,1714029049740,-500.0,0.00016438,2]
[323468293,1714029049749,-500.0,0.00016438,2]
[323468294,1714029049759,-500.0,0.00016438,2]
[323468295,1714029049768,-500.0,0.00016438,2]
[323468296,1714029049777,-500.0,0.00016438,2]
[323468297,1714029049786,-541.96010104,0.00016438,2]
[323468298,1714029049795,-500.0,0.00016438,2]
[323468299,1714029049804,-500.0,0.00016438,2]
[323468300,1714029049813,-500.0,0.00016438,2]
[323468301,1714029049822,-500.0,0.00016438,2]
[323468302,1714029049832,-501.12799057,0.00016438,2]
[323468303,1714029049842,-504.67771749,0.00016438,2]
[323468304,1714029049851,-501.0047556,0.00016438,2]
[323468305,1714029049860,-1057.71,0.00016438,2]
[323468306,1714029049869,-500.0,0.00016438,2]
[323468307,1714029049878,-500.56,0.00016438,2]
[323468308,1714029049887,-505.22560722,0.00016438,2]
[323468309,1714029049896,-500.0,0.00016438,2]
[323468310,1714029049905,-501.37614669,0.00016438,2]
[323468311,1714029049914,-500.0,0.00016438,2]
[323468312,1714029049924,-587.52136881,0.00016438,2]
[323468313,1714029049933,-500.0,0.00016438,2]
[323468314,1714029049942,-500.0,0.00016438,2]
[323468315,1714029049952,-532.03360727,0.00016438,2]
[323468316,1714029049961,-489.77947837,0.00016438,2]
[323468317,1714029049969,-500.88706915,0.00016438,2]
[323468318,1714029049978,-633.35,0.00016438,2]
[323468319,1714029049987,-500.0,0.00016438,2]
[323468320,1714029049998,-500.0,0.00016438,2]
[323468321,1714029050009,-150.07768856,0.00016438,2]
[323468322,1714029050019,-816.77,0.00016438,2]
[323468323,1714029050028,-500.0,0.00016438,2]
[323468324,1714029050037,-506.25801087,0.00016438,2]
[323468325,1714029050046,-1060.08,0.00016438,2]
[323468326,1714029050057,-500.0,0.00016438,2]
[323468327,1714029050066,-500.0,0.00016438,2]
[323468328,1714029050076,-1007.38511649,0.00016438,2]
[323468329,1714029050087,-500.0,0.00016438,2]
[323468330,1714029050096,-565.50475452,0.00016438,2]
[323468331,1714029050106,-501.10573976,0.00016438,2]
[323468332,1714029050115,-500.0,0.00016438,2]
[323468333,1714029050124,-501.91747185,0.00016438,2]
[323468334,1714029050134,-890.42,0.00016438,2]
[323468335,1714029050143,-929.12,0.00016438,2]
[323468336,1714029050153,-526.43340104,0.00016438,2]
[323468337,1714029050162,-508.47859837,0.00016438,2]
[323468338,1714029050172,-213.3865577,0.00016438,2]
[323468339,1714029050181,-536.01501714,0.00016438,2]
[323468340,1714029050190,-500.0,0.00016438,2]
[323468341,1714029050199,-500.0,0.00016438,2]
[323468342,1714029050209,-500.0,0.00016438,2]
[323468343,1714029050218,-500.0,0.00016438,2]
[323468344,1714029050227,-500.49570478,0.00016438,2]
[323468345,1714029050236,-500.0,0.00016438,2]
[323468346,1714029050246,-500.0,0.00016438,2]
[323468347,1714029050255,-500.0,0.00016438,2]
[323468348,1714029050264,-500.0,0.00016438,2]
[323468349,1714029050274,-500.0,0.00016438,2]
[323468350,1714029050283,-500.0,0.00016438,2]
[323468351,1714029050293,-500.0,0.00016438,2]
[323468352,1714029050302,-500.0,0.00016438,2]
[323468353,1714029050312,-500.0,0.00016438,2]
[323468354,1714029050321,-500.0,0.00016438,2]
[323468355,1714029050331,-500.0,0.00016438,2]
[323468356,1714029050342,-500.0,0.00016438,2]
[323468357,1714029050352,-500.86918071,0.00016438,2]
[323468358,1714029050361,-500.0,0.00016438,2]
[323468359,1714029050371,-500.0,0.00016438,2]
[323468360,1714029050380,-504.64771422,0.00016438,2]
[323468361,1714029050390,-502.33911414,0.00016438,2]
[323468362,1714029050400,-500.0,0.00016438,2]
[323468363,1714029050411,-509.93919444,0.00016438,2]
[323468364,1714029050420,-500.0,0.00016438,2]
[323468365,1714029050431,-500.0,0.00016438,2]
[323468366,1714029050440,-500.0,0.00016438,2]
[323468367,1714029050450,-500.0,0.00016438,2]
[323468368,1714029050459,-630.9,0.00016438,2]
[323468369,1714029050468,-504.65490438,0.00016438,2]
[323468370,1714029050478,-500.0,0.00016438,2]
[323468371,1714029050487,-739.88,0.00016438,2]
[323468372,1714029050497,-506.02372272,0.00016438,2]
[323468373,1714029050507,-500.0,0.00016438,2]
[323468374,1714029050516,-500.0,0.00016438,2]
[323468375,1714029050525,-500.0,0.00016438,2]
[323468376,1714029050535,-500.0,0.00016438,2]
[323468377,1714029050544,-500.0,0.00016438,2]
[323468378,1714029050552,-500.0,0.00016438,2]
[323468379,1714029050562,-592.11,0.00016438,2]
[323468380,1714029050571,-822.31,0.00016438,2]
[323468381,1714029050581,-507.26672885,0.00016438,2]
[323468382,1714029050592,-502.39615944,0.00016438,2]
[323468383,1714029050600,-500.0,0.00016438,2]
[323468384,1714029050609,-500.0,0.00016438,2]
[323468385,1714029050619,-510.4936351,0.00016438,2]
[323468386,1714029050628,-529.5163839,0.00016438,2]
[323468387,1714029050637,-500.0,0.00016438,2]
[323468388,1714029050646,-502.50957193,0.00016438,2]
[323468389,1714029050655,-500.73038873,0.00016438,2]
[323468390,1714029050664,-500.61223842,0.00016438,2]
[323468391,1714029050674,-500.0,0.00016438,2]
[323468392,1714029050683,-623.45220294,0.00016438,2]
[323468393,1714029050692,-500.0,0.00016438,2]
[323468394,1714029050701,-739.2,0.00016438,2]
[323468395,1714029050710,-500.0,0.00016438,2]
[323468396,1714029050719,-605.37,0.00016438,2]